bitfinex/quotes_SOLUSD_20251006
["timestamp","ask_amount","ask_price","bid_price","bid_amount"]
[1759792648906,15.00986362,233.18,233.13,30.4]
[1759792649207,2.29697675,233.17,233.13,30.4]
[1759792650125,4.28890032,233.16,233.13,30.4]
[1759792650327,4.28890032,233.16,233.14,0.68]
[1759792650522,10.87647521,233.2,233.15,0.68]
[1759792650823,2.29839792,233.19,233.15,0.68]
[1759792651027,2.29839792,233.18,233.16,28.34]
[1759792651229,2.29839792,233.17,233.16,28.34]
[1759792651431,4.28853246,233.18,233.16,28.34]
[1759792651617,2.29839792,233.17,233.16,28.34]
[1759792653423,2.29839792,233.17,233.16,29.02]
[1759792653625,10.71882198,233.24,233.16,29.02]
[1759792653825,2.29911717,233.23,233.17,0.68]
[1759792654028,2.29911717,233.22,233.17,0.68]
[1759792654231,2.29911717,233.21,233.17,0.68]
[1759792654528,4.28725027,233.25,233.17,0.68]
[1759792654828,2.30032341,233.24,233.17,0.68]
[1759792655029,2.30032341,233.23,233.17,0.68]
[1759792655209,2.30032341,233.22,233.18,4.28853246]
[1759792655408,2.30032341,233.21,233.19,0.68]
[1759792655614,4.28706113,233.27,233.19,0.68]
[1759792655814,2.30111413,233.26,233.19,0.68]
[1759792656015,2.30111413,233.25,233.19,0.68]
[1759792656231,2.30111413,233.24,233.19,0.68]
[1759792656530,2.30111413,233.23,233.19,0.68]
[1759792656722,2.30111413,233.22,233.19,4.96818904]
[1759792656904,4.99684234,233.28,233.2,0.69]
[1759792657104,2.30097014,233.27,233.2,0.69]
[1759792657304,2.30097014,233.26,233.2,0.69]
[1759792657528,2.30097014,233.25,233.2,0.69]
[1759792657713,4.28684234,233.28,233.2,0.69]
[1759792657930,2.3000181,233.27,233.2,0.69]
[1759792658130,2.3000181,233.26,233.2,4.97801583]
[1759792658336,2.3000181,233.26,233.21,0.69]
[1759792658516,2.3000181,233.26,233.22,30.34]
[1759792658925,2.3000181,233.26,233.23,0.69]
[1759792659110,2.3000181,233.26,233.24,0.69]
[1759792659527,6.58708196,233.26,233.22,30.34]
[1759792659727,2.3000181,233.25,233.23,0.69]
[1759792660142,4.28706386,233.26,233.23,0.69]
[1759792661152,4.2866941,233.28,233.23,0.69]
[1759792661329,2.29762593,233.27,233.23,0.69]
[1759792662449,2.29762593,233.27,233.24,0.69]
[1759792662743,0.7,233.31,233.25,0.69]
[1759792662946,6.58472229,233.3,233.25,0.69]
[1759792663118,4.2866941,233.28,233.22,30.34]
[1759792663318,4.2866941,233.28,233.23,0.69]
[1759792663547,4.2866941,233.28,233.24,0.69]
[1759792664581,4.2866941,233.28,233.08,21.45122946]
[1759792664582,2.39531818,233.27,233.08,21.45122946]
[1759792664720,2.39531818,233.27,233.16,0.69]
[1759792664721,10.87647521,233.24,233.16,0.69]
[1759792664929,0.7,233.23,233.16,0.69]
[1759792665238,0.7,233.23,233.13,0.69]
[1759792665239,15.16427213,233.22,233.13,0.69]
[1759792665552,15.86427213,233.22,233.14,15.96]
[1759792666132,26.58376445,233.22,233.15,30.32]
[1759792666326,4.28816466,233.2,233.15,30.32]
[1759792666527,4.98816466,233.2,233.15,30.32]
[1759792667244,4.98816466,233.2,233.15,31.01]
[1759792667549,4.98816466,233.2,233.16,30.3]
[1759792667928,0.7,233.19,233.17,30.3]
[1759792668131,0.7,233.19,233.13,0.69]
[1759792668132,15.86437503,233.22,233.18,30.3]
[1759792668366,0.7,233.21,233.19,30.3]
[1759792668748,0.7,233.2,233.19,30.3]
[1759792671677,5.98348284,233.2,233.19,30.3]
[1759792674090,5.98348284,233.2,233.15,0.7]
[1759792674265,5.98348284,233.2,233.16,30.26]
[1759792674266,1.69531818,233.18,233.16,30.26]
[1759792674457,2.39531818,233.18,233.16,30.26]
[1759792674961,2.39531818,233.17,233.1,21.5]
[1759792675158,2.39531818,233.17,233.11,30.28]
[1759792675159,2.64803325,233.16,233.11,30.28]
[1759792675385,3.34803325,233.16,233.11,30.98]
[1759792676075,0.7,233.18,233.11,30.28]
[1759792676279,6.93674963,233.17,233.12,0.7]
[1759792676487,6.93674963,233.17,233.13,0.7]
[1759792677501,6.93674963,233.17,233.05,10.72705747]
[1759792677502,2.64803325,233.15,233.09,0.7]
[1759792677665,2.64803325,233.13,232.99,10.7298721]
[1759792677993,2.64803325,233.1,233.0,0.7]
[1759792678179,4.29018833,233.09,233.01,30.26]
[1759792678384,4.29018833,233.09,233.02,0.7]
[1759792678964,4.29018833,233.09,233.03,30.28]
[1759792679183,4.29018833,233.09,233.03,30.98]
[1759792680179,2.64803325,233.08,233.03,30.98]
[1759792680498,2.64803325,233.08,232.99,20.8]
[1759792680499,0.7,233.07,233.01,0.7]
[1759792680787,3.34803325,233.07,233.02,30.26]
[1759792680976,3.34803325,233.07,233.02,30.96]
[1759792682169,4.29074058,233.06,233.02,30.96]
[1759792683271,4.29074058,233.06,233.02,30.26]
[1759792683465,4.29074058,233.06,233.03,0.7]
[1759792683672,4.29074058,233.06,233.02,30.26]
[1759792683896,4.99074058,233.06,233.01,0.7]
[1759792684095,4.99074058,233.06,233.02,30.24]
[1759792684096,3.34803325,233.05,233.02,30.24]
[1759792684394,4.29110882,233.04,233.02,30.24]
[1759792684569,4.29110882,233.04,233.03,30.24]
[1759792685072,10.87647521,233.03,232.96,33.44]
[1759792685272,2.64803325,233.02,232.97,30.26]
[1759792685497,3.34803325,233.02,232.97,30.26]
[1759792685867,21.33444986,233.06,232.98,0.7]
[1759792685868,10.87647521,233.05,232.98,0.7]
[1759792686363,4.29092511,233.05,232.99,4.2920297]
[1759792686568,10.87647521,233.06,233.0,0.7]
[1759792688288,15.16728759,233.06,233.0,4.99181549]
[1759792688487,17.81532084,233.06,233.0,0.7]
[1759792689683,15.16728759,233.06,233.0,4.9918315]
[1759792689993,15.16728759,233.06,233.01,0.7]
[1759792690192,10.87647521,233.06,233.02,30.96]
[1759792690568,15.16731698,233.06,233.02,30.96]
[1759792690769,15.16731698,233.06,233.02,30.26]
[1759792690995,15.16731698,233.06,233.03,0.7]
[1759792691189,15.16731698,233.06,233.02,30.26]
[1759792691393,15.16731698,233.06,233.02,30.96]
[1759792692312,17.81535023,233.06,233.02,30.96]
[1759792692879,15.16731698,233.06,233.02,30.26]
[1759792693080,15.16731698,233.06,233.02,30.96]
[1759792693403,4.29084177,233.06,233.03,0.7]
[1759792693588,4.29084177,233.06,233.02,30.26]
[1759792693793,6.93887502,233.06,233.02,30.26]
[1759792694104,4.29084177,233.06,233.03,0.7]
[1759792694625,15.16703169,233.07,233.04,0.7]
[1759792694775,4.29055648,233.07,233.05,0.7]
[1759792695801,4.2903724,233.08,233.03,0.7]
[1759792696811,10.87647521,233.06,233.0,0.7]
[1759792697113,2.64803325,233.04,233.01,30.22]
[1759792697703,4.29129296,233.03,233.01,30.22]
[1759792698085,4.29105741,233.05,233.01,30.92]
[1759792698279,2.64803325,233.02,232.96,33.44]
[1759792698483,6.93909066,233.05,232.97,30.92]
[1759792698683,6.93909066,233.05,232.98,0.68]
[1759792698999,2.64803325,233.04,232.98,0.68]
[1759792699613,2.64803325,233.02,232.96,34.12]
[1759792699804,4.29147712,233.02,232.97,30.26]
[1759792700008,4.29147712,233.02,232.97,30.94]
[1759792700209,4.29147712,233.02,232.98,0.68]
[1759792701001,5.00147712,233.02,232.97,30.26]
[1759792701205,7.64951037,233.02,232.97,30.94]
[1759792701891,7.64951037,233.02,232.98,30.24]
[1759792702607,4.29130717,233.03,232.98,30.92]
[1759792702805,7.64934042,233.03,232.98,30.92]
[1759792703106,6.93934042,233.03,232.98,30.92]
[1759792703305,0.71,233.02,232.98,30.24]
[1759792703715,3.35803325,233.02,232.98,30.24]
[1759792703885,4.2916613,233.01,232.98,30.24]
[1759792704219,4.2916613,233.01,232.99,0.68]
[1759792704514,4.2916613,233.01,232.98,30.24]
[1759792706002,2.64803325,233.03,232.99,0.68]
[1759792706515,3.35803325,233.05,233.0,0.68]
[1759792707407,3.35803325,233.05,232.98,30.24]
[1759792707408,3.35803325,233.04,232.98,30.92]
[1759792707614,2.64803325,233.03,232.98,30.92]
[1759792707817,2.64803325,233.03,232.99,0.68]
[1759792708107,4.2913197,233.03,233.0,0.68]
[1759792708513,4.29111948,233.04,233.01,0.68]
[1759792708812,4.29111948,233.04,233.02,30.9]
[1759792709217,4.29111948,233.04,233.02,30.22]
[1759792710114,2.64803325,233.05,233.02,30.22]
[1759792711713,4.29110882,233.04,233.02,30.22]
[1759792713913,4.29110882,233.04,233.03,0.68]
[1759792714917,4.29110882,233.04,233.02,30.22]
[1759792715115,4.29110882,233.04,233.02,30.9]
[1759792715292,17.66562528,233.06,233.02,30.9]
[1759792716214,2.64803325,233.05,233.02,30.9]
[1759792717092,2.64803325,233.04,233.02,30.22]
[1759792717296,2.64803325,233.04,233.02,30.9]
[1759792717515,4.29129296,233.03,233.02,30.9]
[1759792719513,4.29110882,233.04,233.02,30.9]
[1759792719905,4.29110882,233.04,233.03,0.68]
[1759792721119,15.01759203,233.06,233.03,0.68]
[1759792721317,2.30037749,233.05,233.03,0.68]
[1759792721716,4.29067593,233.07,233.04,30.88]
[1759792721928,4.29067593,233.07,233.05,30.88]
[1759792722120,4.29067593,233.07,233.06,0.68]
[1759792722429,6.59306883,233.07,233.06,0.68]
[1759792723903,4.29067593,233.07,233.06,0.68]
[1759792724104,6.59356676,233.07,233.06,0.68]
[1759792725126,17.66398432,233.09,233.06,0.68]
[1759792725333,2.30363371,233.08,233.06,0.68]
[1759792726034,4.29055648,233.07,233.06,0.68]
[1759792726404,4.29055648,233.07,233.05,30.2]
[1759792726605,6.93858973,233.07,233.05,30.2]
[1759792727520,6.93858973,233.07,233.05,30.88]
[1759792729026,6.93858973,233.07,233.05,0.68]
[1759792729208,6.93858973,233.07,233.06,30.2]
[1759792729523,4.29055648,233.07,233.06,30.2]
[1759792729928,4.29055648,233.07,233.06,30.89]
[1759792730432,4.29055648,233.07,233.06,30.2]
[1759792731232,4.29055648,233.07,233.06,30.89]
[1759792731429,4.29018833,233.09,233.06,30.89]
[1759792731732,2.30364307,233.08,233.07,0.69]
[1759792732032,2.30364307,233.08,233.06,30.2]
[1759792732434,2.30364307,233.08,233.07,0.69]
[1759792732633,4.28998558,233.11,233.07,0.69]
[1759792732843,2.30379603,233.1,233.08,0.69]
[1759792733016,4.2895522,233.13,233.08,0.69]
[1759792734733,4.28908428,233.15,233.09,20.8]
[1759792734914,2.30304943,233.14,233.1,0.69]
[1759792735119,2.30304943,233.14,233.11,30.2]
[1759792735434,2.30304943,233.14,233.12,0.69]
[1759792735732,2.30304943,233.14,233.13,0.69]
[1759792735910,4.28908428,233.15,233.13,0.69]
[1759792736316,4.28908428,233.15,233.14,0.69]
[1759792737152,15.01019186,233.18,233.14,0.69]
[1759792737327,4.28832076,233.2,233.14,0.69]
[1759792737536,2.30099461,233.19,233.14,0.69]
[1759792737727,4.28832076,233.2,233.14,0.69]
[1759792739238,15.00809707,233.21,233.14,4.97926818]
[1759792739443,15.00809707,233.21,233.15,0.69]
[1759792739630,15.00809707,233.21,233.16,30.2]
[1759792739938,15.00809707,233.21,233.16,30.89]
[1759792740751,2.36434816,233.2,233.17,30.2]
[1759792741128,0.67,233.19,233.17,30.2]
[1759792741324,4.28853246,233.18,233.17,30.2]
[1759792741722,10.87647521,233.17,233.11,0.69]
[1759792742033,10.87647521,233.17,233.12,14.28]
[1759792742231,1.69434816,233.16,233.12,14.28]
[1759792742426,12.57082337,233.17,233.12,14.28]
[1759792742628,16.70421178,233.18,233.13,0.69]
[1759792742942,4.28853246,233.18,233.14,0.69]
[1759792743115,4.28853246,233.18,233.15,0.69]
[1759792743321,4.28834855,233.19,233.16,0.69]
[1759792743542,4.28834855,233.19,233.12,14.28]
[1759792743748,4.28834855,233.19,233.14,0.69]
[1759792743933,4.28834855,233.19,233.15,30.18]
[1759792744251,4.28834855,233.19,233.15,30.87]
[1759792745050,4.28761308,233.23,233.16,0.69]
[1759792745340,15.83408829,233.23,233.16,0.69]
[1759792745640,26.553121,233.23,233.16,0.69]
[1759792746644,25.883121,233.23,233.16,0.69]
[1759792747627,1.69434816,233.22,233.15,30.18]
[1759792747833,1.69434816,233.19,233.16,30.18]
[1759792748036,2.36434816,233.18,233.17,30.18]
[1759792748234,13.24082337,233.18,233.17,30.18]
[1759792748753,13.24082337,233.18,233.1,0.69]
[1759792748923,13.24082337,233.18,233.03,12.87139332]
[1759792748924,1.69434816,233.13,233.11,30.18]
[1759792749119,1.69434816,233.14,233.12,30.18]
[1759792749339,2.36434816,233.14,233.12,30.18]
[1759792749740,15.01050734,233.17,233.13,0.69]
[1759792750533,4.28837577,233.19,233.14,0.69]
[1759792750738,4.28837577,233.19,233.15,0.69]
[1759792750931,10.87647521,233.21,233.16,0.69]
[1759792751132,10.87647521,233.21,233.17,30.18]
[1759792751628,4.28779692,233.22,233.18,0.69]
[1759792751833,4.28779692,233.22,233.19,0.69]
[1759792753436,4.28761308,233.23,233.19,0.69]
[1759792753636,15.16408829,233.23,233.19,0.69]
[1759792753846,15.16408829,233.23,233.2,0.69]
[1759792754159,4.28761308,233.23,233.2,0.69]
[1759792755343,10.71888273,233.24,233.2,0.69]
[1759792756538,4.28724544,233.25,233.21,0.69]
[1759792756746,4.28724544,233.25,233.22,30.87]
[1759792756940,4.28724544,233.25,233.23,30.18]
[1759792757160,4.95724544,233.25,233.23,30.18]
[1759792757572,4.28724544,233.25,233.23,30.18]
[1759792758232,17.36970721,233.25,233.24,30.18]
[1759792758659,16.69970721,233.25,233.24,30.18]
[1759792759661,4.28724544,233.25,233.24,30.18]
[1759792763248,5.9815936,233.25,233.24,30.18]
[1759792763954,17.36970721,233.25,233.24,30.18]
[1759792764152,16.69970721,233.25,233.24,30.18]
[1759792765362,17.36970721,233.25,233.24,30.18]
[1759792765538,28.24618242,233.25,233.24,30.18]
[1759792766463,28.24618242,233.25,233.19,0.66]
[1759792766644,4.28761308,233.23,233.2,30.18]
[1759792766846,4.28761308,233.23,233.21,0.66]
[1759792767366,4.28761308,233.23,233.2,30.18]
[1759792767543,4.28761308,233.23,233.21,0.66]
[1759792767861,12.57082337,233.25,233.21,0.66]
[1759792768047,10.87647521,233.25,233.22,0.66]
[1759792768245,1.69434816,233.24,233.2,30.84]
[1759792768643,4.28761308,233.23,233.21,0.66]
[1759792771475,4.28761308,233.23,233.2,30.18]
[1759792771781,1.69434816,233.23,233.2,30.18]
[1759792771948,1.69434816,233.23,233.2,30.84]
[1759792772865,4.28742925,233.24,233.21,0.66]
[1759792773238,4.28742925,233.24,233.22,0.66]
[1759792773567,12.98811337,233.29,233.23,30.82]
[1759792773873,19.15598778,233.28,233.24,0.66]
[1759792774165,16.85751747,233.28,233.24,0.66]
[1759792774348,16.85751747,233.28,233.25,0.66]
[1759792774550,15.16316931,233.28,233.25,0.66]
[1759792775674,15.16316931,233.28,233.23,30.16]
[1759792775675,4.2866941,233.28,233.26,0.66]
[1759792775973,5.98083843,233.3,233.27,0.66]
[1759792776139,2.30155892,233.29,233.28,30.16]
[1759792776560,4.66590708,233.29,233.22,0.66]
[1759792776765,1.69434816,233.24,233.17,4.28871638]
[1759792776964,1.69434816,233.23,233.19,0.66]
[1759792777155,1.69434816,233.23,233.2,30.82]
[1759792777556,10.87647521,233.25,233.2,30.82]
[1759792777756,5.98196124,233.23,233.2,0.66]
[1759792777958,5.98196124,233.23,233.21,30.16]
[1759792778164,4.28761308,233.23,233.21,30.82]
[1759792779660,4.28761308,233.23,233.21,30.82]
[1759792781262,4.28761308,233.23,233.21,0.66]
[1759792781462,4.28761308,233.23,233.22,30.16]
[1759792782274,6.59384696,233.23,233.22,30.16]
[1759792783779,2.30677148,233.23,233.22,30.16]
[1759792784779,6.59438456,233.23,233.22,30.16]
[1759792785078,6.59438456,233.23,233.22,30.82]
[1759792786278,2.30708735,233.23,233.22,30.82]
[1759792787974,2.30708735,233.23,233.19,0.66]
[1759792788175,6.59470043,233.23,233.22,30.16]
[1759792789583,6.59470043,233.23,233.18,4.28850729]
[1759792789767,4.28761308,233.23,233.22,0.68]
[1759792789972,6.59519946,233.23,233.22,0.68]
[1759792790164,6.59519946,233.23,233.2,0.68]
[1759792790379,4.28761308,233.23,233.21,30.16]
[1759792790585,4.28761308,233.23,233.21,30.84]
[1759792791156,4.28706164,233.26,233.22,0.68]
[1759792791359,2.30794942,233.25,233.22,0.68]
[1759792791884,2.30794942,233.25,233.23,0.68]
[1759792791885,6.59528426,233.25,233.23,0.68]
[1759792792085,4.28733484,233.25,233.23,0.68]
[1759792792684,4.28705666,233.27,233.21,34.44787976]
[1759792792882,2.30838472,233.26,233.24,0.68]
[1759792793073,2.30838472,233.26,233.25,0.68]
[1759792793270,2.30838472,233.27,233.25,0.68]
[1759792793475,2.30838472,233.26,233.25,0.68]
[1759792793683,2.30838472,233.27,233.25,30.84]
[1759792795381,2.30838472,233.26,233.25,30.84]
[1759792795583,2.30838472,233.27,233.25,30.84]
[1759792795781,2.30838472,233.27,233.22,4.28774689]
[1759792795782,2.30838472,233.26,233.23,0.68]
[1759792796090,2.30838472,233.25,233.24,30.84]
[1759792796294,2.30838472,233.26,233.24,30.84]
[1759792796497,2.30838472,233.25,233.24,30.16]
[1759792796789,2.30838472,233.26,233.24,30.16]
[1759792796966,4.28693427,233.27,233.24,30.16]
[1759792796967,2.30838472,233.25,233.24,30.16]
[1759792797482,2.30838472,233.26,233.24,30.16]
[1759792797688,2.30838472,233.25,233.24,30.16]
[1759792797878,2.31103585,233.27,233.24,30.16]
[1759792798084,2.31103585,233.26,233.25,0.68]
[1759792798279,2.31103585,233.26,233.24,34.44738007]
[1759792798581,2.31103585,233.25,233.24,4.28738007]
[1759792798782,2.31103585,233.29,233.24,35.12738007]
[1759792798974,2.31103585,233.29,233.25,0.68]
[1759792799375,4.28644652,233.3,233.25,0.68]
[1759792800100,0.71,233.29,233.25,0.68]
[1759792800281,4.99658086,233.29,233.25,0.68]
[1759792800683,2.64448629,233.26,233.19,0.68]
[1759792800884,2.64448629,233.23,233.2,30.14]
[1759792801191,3.35448629,233.23,233.18,0.68]
[1759792801399,3.35448629,233.23,233.19,30.14]
[1759792801598,2.64448629,233.23,233.2,0.68]
[1759792801795,0.71,233.25,233.21,0.68]
[1759792802097,2.64448629,233.23,233.19,30.82]
[1759792802299,2.31141809,233.22,233.2,0.68]
[1759792802671,4.28758035,233.24,233.2,0.68]
[1759792802672,2.64448629,233.23,233.2,0.68]
[1759792802887,2.31132109,233.22,233.2,0.68]
[1759792804379,6.93206664,233.24,233.2,0.68]
[1759792804581,2.31122067,233.23,233.2,0.68]
[1759792804904,2.31121909,233.22,233.2,0.68]
[1759792805116,2.31121909,233.22,233.19,30.14]
[1759792805289,2.31121909,233.22,233.19,30.82]
[1759792805597,2.31121909,233.22,233.2,0.68]
[1759792806097,6.93206664,233.24,233.2,0.68]
[1759792806299,2.31133253,233.23,233.2,0.68]
[1759792807397,2.31133253,233.23,233.19,34.428286]
[1759792807599,4.28727448,233.25,233.21,0.68]
[1759792807903,2.31180742,233.24,233.19,35.108286]
[1759792808090,2.31180742,233.23,233.2,0.68]
[1759792808490,4.28779692,233.22,233.21,30.14]
[1759792808717,6.59958795,233.22,233.21,30.14]
[1759792809086,2.31179103,233.22,233.21,30.14]
[1759792809788,2.31179103,233.23,233.21,30.14]
[1759792809976,2.31179103,233.22,233.21,30.14]
[1759792810177,2.31179103,233.23,233.21,30.14]
[1759792810377,2.31179103,233.22,233.21,30.14]
[1759792810579,6.59958795,233.22,233.21,30.14]
[1759792810795,9.95407424,233.22,233.05,28.61278541]
[1759792810978,2.64448629,233.19,233.12,20.8]
[1759792811181,4.9565292,233.18,233.13,30.14]
[1759792811405,2.64448629,233.18,233.14,0.68]
[1759792811601,3.35448629,233.19,233.14,0.68]
[1759792811803,2.31201253,233.18,233.14,0.68]
[1759792812203,6.60064908,233.18,233.14,0.68]
[1759792812491,4.28863655,233.18,233.14,0.68]
[1759792812887,3.35448629,233.19,233.14,0.68]
[1759792813094,7.64286319,233.19,233.15,0.68]
[1759792813807,7.64286319,233.19,233.13,34.42944178]
[1759792814110,7.64286319,233.19,233.14,0.68]
[1759792814605,2.3107628,233.18,233.15,30.82]
[1759792814913,4.28761308,233.23,233.16,0.68]
[1759792815100,2.31100247,233.22,233.16,0.68]
[1759792815298,2.31100247,233.21,233.16,0.68]
[1759792815498,2.31100247,233.2,233.16,0.68]
[1759792815801,2.31100247,233.19,233.16,0.68]
[1759792815998,4.28795397,233.22,233.16,4.96885749]
[1759792816311,2.31101127,233.21,233.17,0.68]
[1759792816610,2.31101127,233.2,233.18,0.68]
[1759792816795,4.28795397,233.22,233.19,30.14]
[1759792816990,2.31079443,233.21,233.19,30.14]
[1759792817222,2.31079443,233.2,233.19,30.14]
[1759792817509,5.66528072,233.2,233.19,30.14]
[1759792817924,5.66528072,233.2,233.13,0.68]
[1759792818135,2.64448629,233.15,233.1,0.71]
[1759792818289,2.64448629,233.15,233.11,30.14]
[1759792818495,2.64448629,233.15,233.11,30.85]
[1759792818698,0.68,233.17,233.11,30.85]
[1759792819010,10.87647521,233.17,233.11,30.14]
[1759792819218,4.9682859,233.2,233.12,0.71]
[1759792819403,2.30870356,233.19,233.12,0.71]
[1759792820299,2.30833087,233.18,233.12,0.71]
[1759792820499,10.87647521,233.2,233.12,0.71]
[1759792820823,2.64448629,233.21,233.12,0.71]
[1759792821025,2.3087909,233.2,233.12,0.71]
[1759792821211,4.28834855,233.19,233.13,4.28945223]
[1759792821523,4.28834855,233.19,233.14,0.71]
[1759792821725,4.28817348,233.2,233.15,30.85]
[1759792821918,7.61265977,233.2,233.15,30.85]
[1759792822825,6.93265977,233.2,233.15,30.14]
[1759792823024,6.93265977,233.2,233.16,0.71]
[1759792823218,7.61265977,233.2,233.16,0.71]
[1759792823419,7.61265977,233.2,233.15,30.14]
[1759792823619,7.61265977,233.2,233.15,30.85]
[1759792825533,2.64448629,233.19,233.15,30.85]
[1759792825829,3.32448629,233.19,233.15,30.14]
[1759792826337,2.64448629,233.19,233.16,0.71]
[1759792826623,6.93265977,233.2,233.17,0.71]
[1759792827001,6.93265977,233.2,233.15,30.14]
[1759792827203,6.93265977,233.2,233.16,0.71]
[1759792829523,17.80894658,233.21,233.17,0.71]
[1759792829744,4.95282483,233.2,233.15,30.85]
[1759792830026,4.28834855,233.19,233.16,0.71]
[1759792830717,4.28834855,233.19,233.11,0.71]
[1759792830718,2.64448629,233.17,233.11,0.71]
[1759792830923,0.68,233.18,233.12,30.14]
[1759792831229,2.64448629,233.17,233.12,30.85]
[1759792831404,3.32448629,233.18,233.13,0.71]
[1759792831604,3.32448629,233.18,233.14,0.71]
[1759792831828,10.87647521,233.18,233.15,0.71]
[1759792832008,10.87647521,233.18,233.16,30.85]
[1759792832329,15.16514857,233.18,233.17,30.14]
[1759792832626,15.84514857,233.18,233.17,30.14]
[1759792832801,18.48963486,233.18,233.17,30.14]
[1759792834529,0.53444986,233.25,233.17,30.85]
[1759792834707,10.87647521,233.22,233.18,0.71]
[1759792835113,10.87647521,233.22,233.17,30.14]
[1759792835313,10.87647521,233.22,233.18,0.71]
[1759792835528,11.55647521,233.22,233.17,30.14]
[1759792835728,10.87647521,233.22,233.18,0.71]
[1759792836322,4.28798078,233.21,233.18,0.71]
[1759792839933,4.28798078,233.21,233.17,30.14]
[1759792840523,4.28798078,233.21,233.17,30.86]
[1759792841128,4.28798078,233.21,233.18,0.72]
[1759792842335,4.28798078,233.21,233.17,30.14]
[1759792842515,4.28798078,233.21,233.17,30.86]
[1759792842835,4.28798078,233.21,233.18,0.72]
[1759792843332,4.28798078,233.21,233.17,30.14]
[1759792843515,4.28798078,233.21,233.17,30.86]
[1759792845537,4.28798078,233.21,233.18,0.72]
[1759792847942,4.28798078,233.21,233.17,30.14]
[1759792847943,13.5209615,233.25,233.19,0.72]
[1759792848239,10.87647521,233.23,233.19,0.72]
[1759792848423,2.31192469,233.22,233.19,0.72]
[1759792848948,2.31192469,233.22,233.2,0.69]
[1759792849124,2.31192469,233.22,233.21,30.12]
[1759792850236,6.59972161,233.22,233.21,30.12]
[1759792852136,9.9042079,233.22,233.21,30.12]
[1759792852533,9.2442079,233.22,233.21,30.12]
[1759792853219,0.53444986,233.26,233.21,30.12]
[1759792853423,4.2861429,233.31,233.22,0.69]
[1759792853630,2.64448629,233.29,233.22,0.69]
[1759792853820,2.3137296,233.28,233.22,0.69]
[1759792854420,3.30448629,233.3,233.22,0.69]
[1759792854620,6.59978625,233.29,233.22,4.9776167]
[1759792854923,2.31311885,233.28,233.23,0.69]
[1759792856034,2.31311885,233.28,233.21,34.40792836]
[1759792856238,2.31311885,233.28,233.22,0.69]
[1759792856749,6.59998274,233.28,233.22,0.69]
[1759792856927,4.28686389,233.28,233.22,0.69]
[1759792857540,4.94643052,233.3,233.22,4.9777526]
[1759792857721,4.94643052,233.3,233.23,30.12]
[1759792857722,2.64448629,233.27,233.23,30.12]
[1759792857921,3.30448629,233.27,233.23,30.12]
[1759792858122,2.64448629,233.27,233.23,30.12]
[1759792858343,2.64448629,233.27,233.21,0.69]
[1759792858344,2.64448629,233.26,233.24,30.12]
[1759792858555,3.30448629,233.26,233.21,0.69]
[1759792858849,3.30448629,233.26,233.25,30.12]
[1759792858850,7.59154793,233.26,233.25,30.12]
[1759792859025,8.290428,233.26,233.25,30.12]
[1759792859225,6.59722322,233.26,233.25,30.12]
[1759792859425,8.290428,233.26,233.21,0.69]
[1759792859625,5.98026642,233.26,233.22,30.81]
[1759792860347,5.98026642,233.26,233.22,30.12]
[1759792860557,5.98026642,233.26,233.22,30.81]
[1759792860734,17.35792053,233.26,233.22,30.12]
[1759792860926,15.66471575,233.26,233.23,30.12]
[1759792861127,17.35792053,233.26,233.23,30.12]
[1759792861444,17.35792053,233.26,233.24,30.12]
[1759792862140,4.28706164,233.26,233.24,30.81]